[Event "11th LCC Super Blitz 2019"]
[Site "London"]
[Date "2019.12.08"]
[Round "9.10"]
[White "Davis, Holden"]
[Black "Ozturan, Cem"]
[Result "1-0"]
[ECO "B01"]
[WhiteElo "1769"]
[BlackElo "1853"]
[Annotator "NA"]
[PlyCount "87"]
[EventDate "2019.12.08"]
[EventType "swiss"]
[EventCountry "ENG"]
[SourceTitle "playchess.com"]
[Source "ChessBase"]
[SourceQuality "1"]
[TimeControl "180+2"]

1. e4 {[%emt 0:00:00]} d5 {[%emt 0:00:01]} 2. exd5 {[%emt 0:00:01]} Qxd5 {[%emt 0:00:02]} 3. Nc3 {[%emt 0:00:03]} Qd8 {[%emt 0:00:01]} 4. d4 {[%emt 0:00:02]} Nf6 {[%emt 0:00:01]} 5. h3 {[%emt 0:00:02]} c6 {[%emt 0:00:01]} 6. Nf3 {[%emt 0:00:01]} Bf5 {[%emt 0:00:01]} 7. Bd3 {[%emt 0:00:02]} Bxd3 {[%emt 0:00:02]} 8. Qxd3 {[%emt 0:00:01]} e6 {[%emt 0:00:01]} 9. O-O {[%emt 0:00:01]} Bd6 {[%emt 0:00:02]} 10. Re1 {[%emt 0:00:02]} O-O {[%emt 0:00:02]} 11. Bg5 {[%emt 0:00:01]} Nbd7 {[%emt 0:00:03]} 12. Rad1 {[%emt 0:00:02]} Be7 {[%emt 0:00:05]} 13. Ne2 {[%emt 0:00:06]} c5 {[%emt 0:00:17]} 14. dxc5 {[%emt 0:00:14]} Nxc5 {[%emt 0:00:02]} 15. Qb5 {[%emt 0:00:10]} Qc7 {[%emt 0:00:11]} 16. Bf4 {[%emt 0:00:04]} Qb6 {[%emt 0:00:05]} 17. Qxb6 {[%emt 0:00:05]} axb6 {[%emt 0:00:02]} 18. a3 {[%emt 0:00:02]} Rfd8 {[%emt 0:00:14]} 19. Nc3 {[%emt 0:00:07]} h6 {[%emt 0:00:36]} 20. Rxd8+ {[%emt 0:00:02]} Rxd8 {[%emt 0:00:12]} 21. Bc7 {[%emt 0:00:03]} Rc8 {[%emt 0:00:07]} 22. Bxb6 {[%emt 0:00:02]} Rc6 {[%emt 0:00:10]} 23. Bxc5 {[%emt 0:00:04]} Bxc5 {[%emt 0:00:09]} 24. Rd1 {[%emt 0:00:04]} Bxa3 {[%emt 0:00:06]} 25. Ne5 {[%emt 0:00:04]} Rc8 {[%emt 0:00:15]} 26. bxa3 {[%emt 0:00:03]} Rxc3 {[%emt 0:00:02]} 27. Rd8+ {[%emt 0:00:02]} Kh7 {[%emt 0:00:02]} 28. Nxf7 {[%emt 0:00:03]} Rxc2 {[%emt 0:00:07]} 29. Ne5 {[%emt 0:00:12]} Ne4 {[%emt 0:00:08]} 30. f3 {[%emt 0:00:03]} Rc1+ {[%emt 0:00:11]} 31. Kh2 {[%emt 0:00:01]} Nf6 {[%emt 0:00:14]} 32. Rd6 {[%emt 0:00:06]} Rc3 {[%emt 0:00:03]} 33. a4 {[%emt 0:00:04]} Ra3 {[%emt 0:00:01]} 34. Rb6 {[%emt 0:00:08]} Rxa4 {[%emt 0:00:03]} 35. Rxb7 {[%emt 0:00:02]} Ra2 {[%emt 0:00:05]} 36. Re7 {[%emt 0:00:06]} Re2 {[%emt 0:00:09]} 37. Kg3 {[%emt 0:00:10]} Nh5+ {[%emt 0:00:02]} 38. Kh2 {[%emt 0:00:38]} Nf6 {[%emt 0:00:01]} 39. Nc6 {[%emt 0:00:17]} Nh5 {[%emt 0:00:02]} 40. Nd4 {[%emt 0:00:02]} Rd2 {[%emt 0:00:03]} 41. Nxe6 {[%emt 0:00:02]} Nf6 {[%emt 0:00:04]} 42. Rxg7+ {[%emt 0:00:11]} Kh8 {[%emt 0:00:01]} 43. Rg6 {[%emt 0:00:02]} Nd5 {[%emt 0:00:05]} 44. Rxh6+ {[%emt 0:00:35] Kg7} 1-0

[Event "11th LCC Super Blitz 2019"]
[Site "London"]
[Date "2019.12.08"]
[Round "9.10"]
[White "Yeo, Klaus Lucas"]
[Black "Manmay Chopra"]
[Result "0-1"]
[ECO "C02"]
[WhiteElo "1176"]
[BlackElo "1354"]
[Annotator "NA"]
[PlyCount "84"]
[EventDate "2019.12.08"]
[EventType "swiss"]
[EventCountry "ENG"]
[SourceTitle "playchess.com"]
[Source "ChessBase"]
[SourceQuality "1"]
[TimeControl "180+2"]

1. e4 {[%emt 0:00:00]} e6 {[%emt 0:00:00]} 2. d4 {[%emt 0:00:00]} d5 {[%emt 0:00:00]} 3. e5 {[%emt 0:00:00]} c5 {[%emt 0:00:00]} 4. c3 {[%emt 0:00:01]} Nc6 {[%emt 0:00:00]} 5. Nf3 {[%emt 0:00:01]} Nge7 {[%emt 0:00:01]} 6. Be3 {[%emt 0:00:02]} Nf5 {[%emt 0:00:00]} 7. Bd3 {[%emt 0:00:04]} Nxe3 {[%emt 0:00:02]} 8. fxe3 {[%emt 0:00:01]} Qb6 {[%emt 0:00:00]} 9. Qc1 {[%emt 0:00:01]} c4 {[%emt 0:00:02]} 10. Bc2 {[%emt 0:00:01]} Qd8 {[%emt 0:00:23]} 11. O-O {[%emt 0:00:02]} Be7 {[%emt 0:00:02]} 12. Nbd2 {[%emt 0:00:02]} g5 {[%emt 0:00:13]} 13. h3 {[%emt 0:00:05]} h5 {[%emt 0:00:00]} 14. Nh2 {[%emt 0:00:06]} Rg8 {[%emt 0:00:13]} 15. g4 {[%emt 0:00:06]} hxg4 {[%emt 0:00:01]} 16. Nxg4 {[%emt 0:00:01]} Rh8 {[%emt 0:00:16]} 17. Kg2 {[%emt 0:00:02]} Bd7 {[%emt 0:00:05]} 18. Rf2 {[%emt 0:00:01]} Qc7 {[%emt 0:00:04]} 19. Qf1 {[%emt 0:00:04]} Rf8 {[%emt 0:00:11]} 20. Nf6+ {[%emt 0:00:06]} Bxf6 {[%emt 0:00:01]} 21. Rxf6 {[%emt 0:00:03]} Ne7 {[%emt 0:00:15]} 22. Nf3 {[%emt 0:00:09]} Rg8 {[%emt 0:00:10]} 23. Kh2 {[%emt 0:00:24]} Nf5 {[%emt 0:00:04]} 24. Bxf5 {[%emt 0:00:03]} exf5 {[%emt 0:00:01]} 25. Nd2 {[%emt 0:00:16]} Be6 {[%emt 0:00:08]} 26. Qe2 {[%emt 0:00:11]} O-O-O {[%emt 0:00:25]} 27. Rg1 {[%emt 0:00:07]} g4 {[%emt 0:00:12]} 28. hxg4 {[%emt 0:00:06]} Rh8+ {[%emt 0:00:03]} 29. Kg3 {[%emt 0:00:02]} Rdg8 {[%emt 0:00:02]} 30. Kf4 {[%emt 0:00:33]} Rh4 {[%emt 0:00:06]} 31. Kf3 {[%emt 0:00:16]} Rhxg4 {[%emt 0:00:15]} 32. Rxg4 {[%emt 0:00:01]} fxg4+ {[%emt 0:00:01]} 33. Kf2 {[%emt 0:00:07]} g3+ {[%emt 0:00:01]} 34. Kg2 {[%emt 0:00:08]} Qd7 {[%emt 0:00:01]} 35. Nf1 {[%emt 0:00:15]} Bh3+ {[%emt 0:00:04]} 36. Kg1 {[%emt 0:00:03]} Be6 {[%emt 0:00:17]} 37. Qe1 {[%emt 0:00:25]} Bh3 {[%emt 0:00:23]} 38. Rf3 {[%emt 0:00:11]} Bxf1 {[%emt 0:00:01]} 39. Qxf1 {[%emt 0:00:07]} g2 {[%emt 0:00:03]} 40. Qf2 {[%emt 0:00:04]} Qg4 {[%emt 0:00:08]} 41. Rxf7 {[%emt 0:00:02]} Qd1+ {[%emt 0:00:00]} 42. Kh2 {[%emt 0:00:05]} Qh1# 0-1

[Event "11th LCC Super Blitz 2019"]
[Site "London"]
[Date "2019.12.08"]
[Round "9.11"]
[White "Sandhu, Manvith"]
[Black "Saidmurodov, Shahjahon"]
[Result "1-0"]
[ECO "C78"]
[WhiteElo "1673"]
[BlackElo "1812"]
[Annotator "NA"]
[PlyCount "79"]
[EventDate "2019.12.08"]
[EventType "swiss"]
[EventCountry "ENG"]
[SourceTitle "playchess.com"]
[Source "ChessBase"]
[SourceQuality "1"]
[TimeControl "180+2"]

1. e4 {[%emt 0:04:08]} e5 2. Nf3 Nc6 {[%emt 0:00:01]} 3. Bb5 Nf6 {[%emt 0:00:01]} 4. d3 Bc5 {[%emt 0:00:01]} 5. c3 a6 6. Ba4 d6 7. O-O {[%emt 0:00:01]} h6 {[%emt 0:00:03]} 8. h3 {[%emt 0:00:02]} b5 9. Bb3 {[%emt 0:00:01]} Qe7 10. Nbd2 {[%emt 0:00:08]} g5 {[%emt 0:00:02]} 11. Re1 {[%emt 0:00:03]} g4 {[%emt 0:00:02]} 12. hxg4 {[%emt 0:00:02]} Rg8 {[%emt 0:00:09]} 13. Nf1 {[%emt 0:00:03]} Nxg4 {[%emt 0:00:07]} 14. Be3 {[%emt 0:00:03]} Nxe3 {[%emt 0:00:13]} 15. Nxe3 {[%emt 0:00:02]} Bh3 {[%emt 0:00:03]} 16. g3 {[%emt 0:00:12]} Bxe3 {[%emt 0:00:11]} 17. Rxe3 {[%emt 0:00:05]} h5 {[%emt 0:00:03]} 18. Nh4 {[%emt 0:00:03]} Qxh4 {[%emt 0:00:08]} 19. Kh2 {[%emt 0:00:11]} Qg4 {[%emt 0:00:07]} 20. Rf3 {[%emt 0:00:16]} Qc8 {[%emt 0:00:30]} 21. Bxf7+ {[%emt 0:00:04]} Ke7 {[%emt 0:00:07]} 22. Bxg8 {[%emt 0:00:02]} Qxg8 {[%emt 0:00:40]} 23. Kxh3 {[%emt 0:00:02]} Qg4+ {[%emt 0:00:05]} 24. Kh2 {[%emt 0:00:03]} Rg8 {[%emt 0:00:03]} 25. Re3 {[%emt 0:00:16]} Qg5 {[%emt 0:00:04]} 26. Qf3 {[%emt 0:00:07]} Rf8 {[%emt 0:00:05]} 27. Qg2 {[%emt 0:00:02]} Nd8 {[%emt 0:00:04]} 28. Rf3 {[%emt 0:00:03]} Rh8 {[%emt 0:00:05]} 29. Rf5 {[%emt 0:00:11]} Qg6 {[%emt 0:00:05]} 30. Qh3 {[%emt 0:00:11]} Ne6 {[%emt 0:00:06]} 31. Qh4+ {[%emt 0:00:02]} Kd7 {[%emt 0:00:03]} 32. Re1 {[%emt 0:00:09]} Qg7 {[%emt 0:00:17]} 33. Re3 {[%emt 0:00:03]} b4 {[%emt 0:00:31]} 34. Ref3 {[%emt 0:00:01]} Qg8 {[%emt 0:00:12]} 35. Rf7+ {[%emt 0:00:33]} Kc6 {[%emt 0:00:02]} 36. R3f6 {[%emt 0:00:11]} Ng5 {[%emt 0:00:03]} 37. Rf5 {[%emt 0:00:10]} Nxf7 {[%emt 0:00:02]} 38. Qf6 {[%emt 0:00:10]} Nd8 {[%emt 0:00:05]} 39. d4 {[%emt 0:00:03]} Qe6 {[%emt 0:00:03]} 40. d5+ {[%emt 0:00:03]} 1-0

[Event "11th LCC Super Blitz 2019"]
[Site "London"]
[Date "2019.12.08"]
[Round "9.11"]
[White "Caceres De La Calle, Eduardo"]
[Black "Nunn, Petra"]
[Result "0-1"]
[ECO "A17"]
[WhiteElo "1575"]
[BlackElo "1908"]
[Annotator "NA"]
[PlyCount "62"]
[EventDate "2019.12.08"]
[EventType "swiss"]
[EventCountry "ENG"]
[SourceTitle "playchess.com"]
[Source "ChessBase"]
[SourceQuality "1"]
[TimeControl "180+2"]

1. c4 {[%emt 0:00:00]} e6 {[%emt 0:00:02]} 2. Nc3 {[%emt 0:00:02]} d5 {[%emt 0:00:02]} 3. cxd5 exd5 {[%emt 0:00:01]} 4. g3 {[%emt 0:00:02]} Nf6 {[%emt 0:00:08]} 5. Bg2 {[%emt 0:00:02]} Be7 {[%emt 0:00:02]} 6. d3 {[%emt 0:00:03]} O-O {[%emt 0:00:07]} 7. e3 {[%emt 0:00:06]} c5 {[%emt 0:00:42]} 8. Nge2 {[%emt 0:00:06]} Nc6 {[%emt 0:00:01]} 9. O-O {[%emt 0:00:02]} Bf5 {[%emt 0:00:08]} 10. h3 {[%emt 0:00:16]} d4 {[%emt 0:00:11]} 11. e4 {[%emt 0:00:16]} Bxh3 {[%emt 0:00:53]} 12. Bxh3 {[%emt 0:00:04]} dxc3 {[%emt 0:00:00]} 13. bxc3 {[%emt 0:00:05]} Qd6 {[%emt 0:00:08]} 14. Bf4 {[%emt 0:00:24]} Qd8 {[%emt 0:00:11]} 15. Qc2 {[%emt 0:00:08]} Bd6 {[%emt 0:00:05]} 16. Be3 {[%emt 0:00:08]} b6 {[%emt 0:00:06]} 17. f4 {[%emt 0:00:04]} Bc7 {[%emt 0:00:05]} 18. a3 {[%emt 0:00:09]} Qe7 {[%emt 0:00:07]} 19. Rad1 {[%emt 0:00:09]} Rad8 {[%emt 0:00:03]} 20. Qa4 {[%emt 0:00:21]} Na5 {[%emt 0:00:18]} 21. Qc2 {[%emt 0:00:04]} c4 {[%emt 0:00:05]} 22. d4 {[%emt 0:00:04]} Qxa3 {[%emt 0:00:02]} 23. d5 {[%emt 0:00:12]} Qb3 {[%emt 0:00:05]} 24. Rd2 {[%emt 0:00:33]} Qxc2 {[%emt 0:00:03]} 25. Rxc2 {[%emt 0:00:01]} Nxe4 {[%emt 0:00:01]} 26. Bg2 {[%emt 0:00:15]} Nf6 {[%emt 0:00:03]} 27. Rd1 {[%emt 0:00:12]} Rfe8 {[%emt 0:00:01]} 28. Kf2 {[%emt 0:00:03]} Ng4+ {[%emt 0:00:01]} 29. Kf3 {[%emt 0:00:01]} Nxe3 {[%emt 0:00:03]} 30. Kf2 {[%emt 0:00:05]} Nxd1+ {[%emt 0:00:02]} 31. Ke1 {[%emt 0:00:01]} Ne3 {[%emt 0:00:01]} 0-1

[Event "11th LCC Super Blitz 2019"]
[Site "London"]
[Date "2019.12.08"]
[Round "9.12"]
[White "Lovell, William Pm"]
[Black "Patel, Rishi"]
[Result "0-1"]
[ECO "A25"]
[WhiteElo "1831"]
[BlackElo "1899"]
[Annotator "NA"]
[PlyCount "180"]
[EventDate "2019.12.08"]
[EventType "swiss"]
[EventCountry "ENG"]
[SourceTitle "playchess.com"]
[Source "ChessBase"]
[SourceQuality "1"]
[TimeControl "180+2"]

1. c4 {[%emt 0:00:00]} e5 {[%emt 0:00:00]} 2. g3 {[%emt 0:00:00]} Nc6 {[%emt 0:00:02]} 3. Bg2 {[%emt 0:00:00]} Bc5 {[%emt 0:00:01]} 4. e3 {[%emt 0:00:02]} d6 {[%emt 0:00:02]} 5. Nc3 {[%emt 0:00:01]} Nge7 {[%emt 0:00:02]} 6. Nge2 {[%emt 0:00:01]} O-O {[%emt 0:00:04]} 7. O-O {[%emt 0:00:03]} a6 {[%emt 0:00:00]} 8. d4 {[%emt 0:00:01]} exd4 {[%emt 0:00:02]} 9. exd4 {[%emt 0:00:01]} Bb4 {[%emt 0:00:01]} 10. a3 {[%emt 0:00:12]} Bxc3 {[%emt 0:00:03]} 11. bxc3 {[%emt 0:00:00]} Bg4 {[%emt 0:00:02]} 12. h3 {[%emt 0:00:03]} Bh5 {[%emt 0:00:01]} 13. Qc2 {[%emt 0:00:08]} Re8 {[%emt 0:00:06]} 14. Nf4 {[%emt 0:00:01]} Bg6 {[%emt 0:00:02]} 15. Nxg6 {[%emt 0:00:01]} hxg6 {[%emt 0:00:01]} 16. Rb1 {[%emt 0:00:06]} Rb8 {[%emt 0:00:03]} 17. Bg5 {[%emt 0:00:09]} Qd7 {[%emt 0:00:02]} 18. Rfe1 {[%emt 0:00:07]} Na5 {[%emt 0:00:17]} 19. Qd3 {[%emt 0:00:08]} Nec6 {[%emt 0:00:08]} 20. Kh2 {[%emt 0:00:15]} Rxe1 {[%emt 0:00:06]} 21. Rxe1 {[%emt 0:00:02]} Re8 {[%emt 0:00:00]} 22. Rxe8+ {[%emt 0:00:13]} Qxe8 {[%emt 0:00:01]} 23. Bd5 {[%emt 0:00:03]} Kf8 {[%emt 0:00:18]} 24. Qf3 {[%emt 0:00:13]} Ne7 {[%emt 0:00:03]} 25. Bxe7+ {[%emt 0:00:04]} Qxe7 {[%emt 0:00:02]} 26. Bxb7 {[%emt 0:00:04]} Nxc4 {[%emt 0:00:04]} 27. Bd5 {[%emt 0:00:02]} Nxa3 {[%emt 0:00:16]} 28. c4 {[%emt 0:00:01]} Nc2 {[%emt 0:00:07]} 29. Qd3 {[%emt 0:00:09]} Nb4 {[%emt 0:00:06]} 30. Qb3 {[%emt 0:00:09]} Nxd5 {[%emt 0:00:03]} 31. cxd5 {[%emt 0:00:01]} Qd7 {[%emt 0:00:10]} 32. Kg2 {[%emt 0:00:07]} Ke7 {[%emt 0:00:03]} 33. Qe3+ {[%emt 0:00:16]} Kd8 {[%emt 0:00:04]} 34. Qb3 {[%emt 0:00:12]} Qb5 {[%emt 0:00:02]} 35. Qe3 {[%emt 0:00:06]} Qxd5+ {[%emt 0:00:02]} 36. Kh2 {[%emt 0:00:01]} a5 {[%emt 0:00:05]} 37. Qc3 {[%emt 0:00:08]} Kd7 {[%emt 0:00:04]} 38. h4 {[%emt 0:00:05]} a4 {[%emt 0:00:03]} 39. Qe3 {[%emt 0:00:26]} Qb3 {[%emt 0:00:16]} 40. Qe4 {[%emt 0:00:09]} a3 {[%emt 0:00:02]} 41. Qg4+ {[%emt 0:00:01]} Qe6 {[%emt 0:00:01]} 42. Qd1 {[%emt 0:00:11]} a2 {[%emt 0:00:05]} 43. Qa4+ {[%emt 0:00:02]} Ke7 {[%emt 0:00:01]} 44. Qa3 {[%emt 0:00:07]} Qc4 {[%emt 0:00:07]} 45. Qe3+ {[%emt 0:00:03]} Kd7 {[%emt 0:00:02]} 46. Qa3 {[%emt 0:00:02]} Qc2 {[%emt 0:00:29]} 47. Kg2 {[%emt 0:00:05]} Qb1 {[%emt 0:00:09]} 48. Qa4+ {[%emt 0:00:01]} Ke7 {[%emt 0:00:04]} 49. Qc6 {[%emt 0:00:07]} Kd8 {[%emt 0:00:17]} 50. Qa8+ {[%emt 0:00:02]} Kd7 {[%emt 0:00:01]} 51. Qa4+ {[%emt 0:00:01]} Kc8 {[%emt 0:00:04]} 52. Qa8+ {[%emt 0:00:02]} Kd7 {[%emt 0:00:03]} 53. Qa4+ {[%emt 0:00:01]} Ke7 {[%emt 0:00:07]} 54. Qc6 {[%emt 0:00:02]} Qb6 {[%emt 0:00:04]} 55. Qa4 {[%emt 0:00:03]} Qb2 {[%emt 0:00:08]} 56. Qc6 {[%emt 0:00:02]} Qxd4 {[%emt 0:00:05]} 57. Qxc7+ {[%emt 0:00:01]} Ke6 {[%emt 0:00:01]} 58. Qc8+ {[%emt 0:00:02]} Kd5 {[%emt 0:00:01]} 59. Qb7+ {[%emt 0:00:03]} Ke5 {[%emt 0:00:02]} 60. Qe7+ {[%emt 0:00:02]} Kd5 {[%emt 0:00:02]} 61. Qb7+ {[%emt 0:00:01]} Kc5 {[%emt 0:00:01]} 62. Qa7+ {[%emt 0:00:03]} Kc4 {[%emt 0:00:02]} 63. Qxa2+ {[%emt 0:00:02]} Kd3 {[%emt 0:00:01]} 64. Qb3+ {[%emt 0:00:03]} Ke4 {[%emt 0:00:03]} 65. Qf3+ {[%emt 0:00:01]} Ke5 {[%emt 0:00:01]} 66. Qxf7 {[%emt 0:00:06]} Qe4+ {[%emt 0:00:03]} 67. Kg1 {[%emt 0:00:02]} Qe1+ {[%emt 0:00:03]} 68. Kg2 {[%emt 0:00:01]} Qe4+ {[%emt 0:00:02]} 69. Kg1 {[%emt 0:00:00]} Qf5 {[%emt 0:00:06]} 70. Qe7+ {[%emt 0:00:02]} Kd5 {[%emt 0:00:03]} 71. Qb7+ {[%emt 0:00:02]} Kd4 {[%emt 0:00:04]} 72. Qb4+ {[%emt 0:00:01]} Ke5 {[%emt 0:00:01]} 73. Qb5+ {[%emt 0:00:02]} Kf6 {[%emt 0:00:01]} 74. Qb2+ {[%emt 0:00:03]} Qe5 {[%emt 0:00:01]} 75. Qxe5+ {[%emt 0:00:02]} Kxe5 {[%emt 0:00:01]} 76. Kg2 {[%emt 0:00:02]} Ke4 {[%emt 0:00:01]} 77. g4 {[%emt 0:00:06]} d5 {[%emt 0:00:02]} 78. f3+ {[%emt 0:00:02]} Ke3 {[%emt 0:00:01]} 79. Kg3 {[%emt 0:00:02]} d4 {[%emt 0:00:01]} 80. h5 {[%emt 0:00:00]} gxh5 {[%emt 0:00:01]} 81. gxh5 {[%emt 0:00:02]} d3 {[%emt 0:00:00]} 82. h6 {[%emt 0:00:03]} gxh6 {[%emt 0:00:01]} 83. f4 {[%emt 0:00:00]} d2 {[%emt 0:00:01]} 84. f5 {[%emt 0:00:01]} d1=Q {[%emt 0:00:02]} 85. f6 {[%emt 0:00:01]} Qf1 {[%emt 0:00:02]} 86. f7 {[%emt 0:00:01]} Qxf7 {[%emt 0:00:02]} 87. Kg2 {[%emt 0:00:01]} Ke2 {[%emt 0:00:03]} 88. Kh3 {[%emt 0:00:01]} Qg6 {[%emt 0:00:01]} 89. Kh2 {[%emt 0:00:01]} Kf2 {[%emt 0:00:01]} 90. Kh1 {[%emt 0:00:02]} Qg1# {[%emt 0:00:04]} 0-1

[Event "11th LCC Super Blitz 2019"]
[Site "London"]
[Date "2019.12.08"]
[Round "9.12"]
[White "Fisher, Neal"]
[Black "Phillips, David"]
[Result "0-1"]
[ECO "A48"]
[WhiteElo "1522"]
[BlackElo "1810"]
[Annotator "NA"]
[PlyCount "82"]
[EventDate "2019.12.08"]
[EventType "swiss"]
[EventCountry "ENG"]
[SourceTitle "playchess.com"]
[Source "ChessBase"]
[SourceQuality "1"]
[TimeControl "180+2"]

1. d4 {[%emt 0:00:01]} Nf6 {[%emt 0:00:00]} 2. Nf3 {[%emt 0:00:02]} d6 {[%emt 0:00:06]} 3. Bf4 {[%emt 0:00:07]} g6 {[%emt 0:00:03]} 4. e3 {[%emt 0:00:01]} Bg7 {[%emt 0:00:01]} 5. c3 {[%emt 0:00:00]} O-O {[%emt 0:00:05]} 6. Bd3 {[%emt 0:00:06]} Nbd7 {[%emt 0:00:05]} 7. Qc2 {[%emt 0:00:04]} Re8 {[%emt 0:00:02]} 8. h4 {[%emt 0:00:01]} e5 {[%emt 0:00:05]} 9. dxe5 {[%emt 0:00:13]} dxe5 {[%emt 0:00:02]} 10. h5 {[%emt 0:00:11]} exf4 {[%emt 0:00:05]} 11. hxg6 {[%emt 0:00:02]} fxg6 {[%emt 0:00:06]} 12. e4 {[%emt 0:00:14]} Nc5 {[%emt 0:00:02]} 13. Bc4+ {[%emt 0:00:03]} Be6 {[%emt 0:00:02]} 14. Bxe6+ {[%emt 0:00:01]} Rxe6 {[%emt 0:00:05]} 15. e5 {[%emt 0:00:17]} Nh5 {[%emt 0:00:17]} 16. O-O {[%emt 0:00:27]} Qd3 {[%emt 0:00:10]} 17. Qxd3 {[%emt 0:00:02]} Nxd3 {[%emt 0:00:02]} 18. Na3 {[%emt 0:00:03]} Nxe5 {[%emt 0:00:03]} 19. Nxe5 {[%emt 0:00:01]} Rxe5 {[%emt 0:00:04]} 20. Nc4 {[%emt 0:00:02]} Re2 {[%emt 0:00:03]} 21. Rae1 {[%emt 0:00:06]} Rae8 {[%emt 0:00:01]} 22. Rxe2 {[%emt 0:00:01]} Rxe2 {[%emt 0:00:02]} 23. Na5 {[%emt 0:00:14]} Rxb2 {[%emt 0:00:04]} 24. Nc4 {[%emt 0:00:01]} Rxa2 {[%emt 0:00:03]} 25. Rb1 {[%emt 0:00:04]} b6 {[%emt 0:00:03]} 26. Rd1 {[%emt 0:00:13]} Bxc3 {[%emt 0:00:05]} 27. Rd8+ {[%emt 0:00:02]} Kg7 {[%emt 0:00:02]} 28. Rc8 {[%emt 0:00:03]} c5 {[%emt 0:00:05]} 29. Nd6 {[%emt 0:00:03]} Be5 {[%emt 0:00:08]} 30. Ne8+ {[%emt 0:00:07]} Kh6 {[%emt 0:00:02]} 31. Nc7 {[%emt 0:00:14]} c4 {[%emt 0:00:05]} 32. Nd5 {[%emt 0:00:03]} b5 {[%emt 0:00:04]} 33. Re8 {[%emt 0:00:05]} Bg7 {[%emt 0:00:07]} 34. Re7 {[%emt 0:00:10]} a5 {[%emt 0:00:07]} 35. Nc7 {[%emt 0:00:06]} c3 {[%emt 0:00:14]} 36. Ne6 {[%emt 0:00:01]} c2 {[%emt 0:00:05]} 37. Rc7 {[%emt 0:00:05]} b4 {[%emt 0:00:07]} 38. Kh2 {[%emt 0:00:09]} f3 {[%emt 0:00:06]} 39. gxf3 {[%emt 0:00:06]} Be5+ {[%emt 0:00:02]} 40. f4 {[%emt 0:00:00]} Bxc7 {[%emt 0:00:02]} 41. Nxc7 {[%emt 0:00:02]} c1=Q {[%emt 0:00:03]} 0-1

[Event "11th LCC Super Blitz 2019"]
[Site "London"]
[Date "2019.12.08"]
[Round "9.12"]
[White "Thatte, Nandinee"]
[Black "Muhunthan, Charukgan"]
[Result "0-1"]
[ECO "E32"]
[WhiteElo "1270"]
[BlackElo "1401"]
[Annotator "NA"]
[PlyCount "57"]
[EventDate "2019.12.08"]
[EventType "swiss"]
[EventCountry "ENG"]
[SourceTitle "playchess.com"]
[Source "ChessBase"]
[SourceQuality "1"]
[TimeControl "180+2"]

1. d4 {[%emt 0:00:00]} Nf6 {[%emt 0:00:00]} 2. c4 {[%emt 0:00:00]} e6 {[%emt 0:00:00]} 3. Nc3 {[%emt 0:00:01]} Bb4 {[%emt 0:00:00]} 4. Qc2 {[%emt 0:00:01]} b6 {[%emt 0:00:02]} 5. e4 {[%emt 0:00:02]} Bb7 {[%emt 0:00:01]} 6. Bd3 {[%emt 0:00:02]} d6 {[%emt 0:00:07]} 7. Nf3 {[%emt 0:00:03]} Nbd7 {[%emt 0:00:00]} 8. O-O {[%emt 0:00:02]} O-O {[%emt 0:00:02]} 9. Bg5 {[%emt 0:00:01]} h6 {[%emt 0:00:01]} 10. Bh4 {[%emt 0:00:01]} Bxc3 {[%emt 0:00:22]} 11. bxc3 {[%emt 0:00:04]} e5 {[%emt 0:00:14]} 12. d5 {[%emt 0:00:28]} Re8 {[%emt 0:00:16]} 13. Rab1 {[%emt 0:00:13]} Ba6 {[%emt 0:00:14]} 14. Qa4 {[%emt 0:00:13]} Qc8 {[%emt 0:00:02]} 15. Rfe1 {[%emt 0:00:19]} Nc5 {[%emt 0:00:05]} 16. Qc2 {[%emt 0:00:05]} Nh7 {[%emt 0:00:29]} 17. Kh1 {[%emt 0:00:30]} Qg4 {[%emt 0:00:13]} 18. h3 {[%emt 0:00:13]} Qh5 {[%emt 0:00:01]} 19. Bg3 {[%emt 0:00:16]} Ng5 {[%emt 0:00:28]} 20. Nxg5 {[%emt 0:00:05]} hxg5 {[%emt 0:00:00]} 21. Kg1 {[%emt 0:00:05]} Bc8 {[%emt 0:00:02]} 22. Be2 {[%emt 0:00:09]} Qh6 {[%emt 0:00:02]} 23. Bf3 {[%emt 0:00:10]} Rf8 {[%emt 0:00:07]} 24. Rb5 {[%emt 0:00:16]} f5 {[%emt 0:00:09]} 25. exf5 {[%emt 0:00:12]} Bxf5 {[%emt 0:00:02]} 26. Qd2 {[%emt 0:00:04]} a6 {[%emt 0:00:19]} 27. Rb2 {[%emt 0:00:05]} Nd3 {[%emt 0:00:01]} 28. Rbb1 {[%emt 0:00:18]} Nxe1 {[%emt 0:00:03]} 29. Rxe1 {[%emt 0:00:01]} 0-1

[Event "11th LCC Super Blitz 2019"]
[Site "London"]
[Date "2019.12.08"]
[Round "10.2"]
[White "Wallace, John Paul"]
[Black "Bukojemski, Adam"]
[Result "1/2-1/2"]
[ECO "D86"]
[WhiteElo "2344"]
[BlackElo "2219"]
[Annotator "NA"]
[PlyCount "98"]
[EventDate "2019.12.08"]
[EventType "swiss"]
[EventCountry "ENG"]
[SourceTitle "playchess.com"]
[Source "ChessBase"]
[SourceQuality "1"]
[TimeControl "180+2"]

1. d4 {[%emt 0:00:00]} Nf6 {[%emt 0:00:00]} 2. c4 {[%emt 0:00:00]} g6 {[%emt 0:00:00]} 3. Nc3 {[%emt 0:00:01]} d5 {[%emt 0:00:01]} 4. cxd5 {[%emt 0:00:05]} Nxd5 {[%emt 0:00:01]} 5. e4 {[%emt 0:00:01]} Nxc3 {[%emt 0:00:01]} 6. bxc3 {[%emt 0:00:01]} c5 {[%emt 0:00:01]} 7. Bc4 {[%emt 0:00:02]} Bg7 {[%emt 0:00:02]} 8. Ne2 {[%emt 0:00:02]} Nc6 {[%emt 0:00:04]} 9. d5 {[%emt 0:00:04]} Na5 {[%emt 0:00:03]} 10. Bd3 {[%emt 0:00:02]} O-O {[%emt 0:00:07]} 11. Rb1 {[%emt 0:00:07]} c4 {[%emt 0:00:06]} 12. Bc2 {[%emt 0:00:02]} b6 {[%emt 0:00:02]} 13. O-O {[%emt 0:00:07]} e6 {[%emt 0:00:01]} 14. Be3 {[%emt 0:00:42]} Re8 {[%emt 0:00:10]} 15. Qd2 {[%emt 0:00:03]} exd5 {[%emt 0:00:10]} 16. exd5 {[%emt 0:00:02]} Nb7 {[%emt 0:00:01]} 17. Rfd1 {[%emt 0:00:15]} Nd6 {[%emt 0:00:01]} 18. Nd4 {[%emt 0:00:04]} Bb7 {[%emt 0:00:17]} 19. Nb5 {[%emt 0:00:23]} Be5 {[%emt 0:00:21]} 20. Bf4 {[%emt 0:00:24]} a6 {[%emt 0:00:15]} 21. Bxe5 {[%emt 0:00:03]} Rxe5 {[%emt 0:00:01]} 22. Qf4 {[%emt 0:00:25]} f6 {[%emt 0:00:09]} 23. Nxd6 {[%emt 0:00:10]} Qxd6 {[%emt 0:00:01]} 24. Qxc4 {[%emt 0:00:03]} b5 {[%emt 0:00:02]} 25. Qb4 {[%emt 0:00:09]} Rd8 {[%emt 0:00:10]} 26. Bb3 {[%emt 0:00:01]} Kf7 {[%emt 0:00:53]} 27. Rd2 {[%emt 0:00:02]} Rd7 {[%emt 0:00:11]} 28. Rbd1 {[%emt 0:00:05]} g5 {[%emt 0:00:02]} 29. Qxd6 {[%emt 0:00:05]} Rxd6 {[%emt 0:00:01]} 30. f3 {[%emt 0:00:11]} Ke7 {[%emt 0:00:05]} 31. Kf2 {[%emt 0:00:02]} Kd7 {[%emt 0:00:01]} 32. Re1 {[%emt 0:00:06]} Rxe1 {[%emt 0:00:07]} 33. Kxe1 {[%emt 0:00:01]} Kc7 {[%emt 0:00:03]} 34. Re2 {[%emt 0:00:04]} Bxd5 {[%emt 0:00:07]} 35. Re7+ {[%emt 0:00:02]} Kb6 {[%emt 0:00:04]} 36. Bxd5 {[%emt 0:00:06]} Rxd5 {[%emt 0:00:00]} 37. Rxh7 {[%emt 0:00:06]} Ka5 {[%emt 0:00:07]} 38. Rf7 Rd6 {[%emt 0:00:00]} 39. Ke2 {[%emt 0:00:06]} Ka4 {[%emt 0:00:01]} 40. g3 {[%emt 0:00:02]} Ka3 {[%emt 0:00:01]} 41. h4 {[%emt 0:00:02]} gxh4 {[%emt 0:00:00]} 42. gxh4 {[%emt 0:00:00]} Kxa2 {[%emt 0:00:01]} 43. h5 {[%emt 0:00:01]} Kb3 {[%emt 0:00:07]} 44. Rc7 {[%emt 0:00:04]} a5 {[%emt 0:00:01]} 45. h6 {[%emt 0:00:01]} f5 {[%emt 0:00:02]} 46. h7 {[%emt 0:00:00]} Rh6 {[%emt 0:00:01]} 47. Rc5 {[%emt 0:00:01]} b4 {[%emt 0:00:05]} 48. cxb4 Kxb4 {[%emt 0:00:01]} 49. Rxf5 Rxh7 {[%emt 0:00:02]} 1/2-1/2